[Event "Titled Tuesday Blitz November 07 Late 2023"]
[White "Sjugirov, Sanan"]
[Black "TintinUndercover"]
[WhiteFideId "4189302"]
[WhiteElo "2957"]
[BlackElo "2609"]
[Result "1-0"]
[Round "2"]
[TimeControl "180+1"]
[Date "2023.11.07"]
[WhiteClock "0:01:30"]
[BlackClock "0:00:00"]
[Board "22"]

1. e4 {[%clk 0:03:00]}  c5 {[%clk 0:03:00]} 2. Nf3 {[%clk 0:03:01]}  Nc6 {[%clk 0:03:00]} 3. Bb5 {[%clk 0:03:00]}  g6 {[%clk 0:03:01]} 4. O-O {[%clk 0:03:00]}  Bg7 {[%clk 0:03:01]} 5. Re1 {[%clk 0:03:00]}  Nf6 {[%clk 0:03:01]} 6. Bxc6 {[%clk 0:02:59]}  bxc6 {[%clk 0:03:01]} 7. e5 {[%clk 0:02:58]}  Nd5 {[%clk 0:03:01]} 8. c4 {[%clk 0:02:59]}  Nc7 {[%clk 0:03:01]} 9. Nc3 {[%clk 0:03:00]}  O-O {[%clk 0:02:59]} 10. d4 {[%clk 0:03:00]}  cxd4 {[%clk 0:02:58]} 11. Qxd4 {[%clk 0:03:01]}  d6 {[%clk 0:02:41]} 12. Qh4 {[%clk 0:03:00]}  Re8 {[%clk 0:02:37]} 13. Bh6 {[%clk 0:02:59]}  Bxe5 {[%clk 0:02:08]} 14. Nxe5 {[%clk 0:02:50]}  dxe5 {[%clk 0:02:09]} 15. Rad1 {[%clk 0:02:49]}  Bd7 {[%clk 0:02:02]} 16. Rxe5 {[%clk 0:02:44]}  Ne6 {[%clk 0:01:50]} 17. Rxe6 {[%clk 0:02:39]}  Bxe6 {[%clk 0:01:37]} 18. Rxd8 {[%clk 0:02:38]}  Raxd8 {[%clk 0:01:38]} 19. h3 {[%clk 0:02:35]}  c5 {[%clk 0:01:35]} 20. Be3 {[%clk 0:02:35]}  Rc8 {[%clk 0:01:26]} 21. b3 {[%clk 0:02:32]}  f6 {[%clk 0:01:19]} 22. Ne4 {[%clk 0:02:31]}  Bf7 {[%clk 0:01:18]} 23. Nxc5 {[%clk 0:02:28]}  Red8 {[%clk 0:01:07]} 24. Ne4 {[%clk 0:02:25]}  Rc6 {[%clk 0:01:02]} 25. Bxa7 {[%clk 0:02:18]}  Ra8 {[%clk 0:00:59]} 26. Bc5 {[%clk 0:02:16]}  g5 {[%clk 0:00:37]} 27. Nxg5 {[%clk 0:02:01]}  fxg5 {[%clk 0:00:38]} 28. Qxg5+ {[%clk 0:02:01]}  Rg6 {[%clk 0:00:37]} 29. Qe5 {[%clk 0:02:00]}  Rxa2 {[%clk 0:00:20]} 30. Bd4 {[%clk 0:01:59]}  Rf6 {[%clk 0:00:18]} 31. Qxe7 {[%clk 0:01:55]}  Re6 {[%clk 0:00:09]} 32. Qd8+ {[%clk 0:01:54]}  Be8 {[%clk 0:00:09]} 33. Qc7 {[%clk 0:01:51]}  Bf7 {[%clk 0:00:07]} 34. Qb8+ {[%clk 0:01:47]}  Be8 {[%clk 0:00:07]} 35. Qg3+ {[%clk 0:01:47]}  Bg6 {[%clk 0:00:08]} 36. h4 {[%clk 0:01:41]}  Rc2 {[%clk 0:00:06]} 37. h5 {[%clk 0:01:38]}  Re1+ {[%clk 0:00:07]} 38. Kh2 {[%clk 0:01:39]}  Rcc1 {[%clk 0:00:08]} 39. Qb8+ {[%clk 0:01:38]}  Be8 {[%clk 0:00:08]} 40. Qc7 {[%clk 0:01:33]}  Bf7 {[%clk 0:00:08]} 41. Qd8+ {[%clk 0:01:31]}  Be8 {[%clk 0:00:08]} 42. Qf6 {[%clk 0:01:30]}  Rh1+ {[%clk 0:00:00]} 43. Kg3 {[%clk 0:01:30]} 1-0


[Site "https://www.chess.com"]

[Event "Titled Tuesday Blitz November 07 Late 2023"]
[White "Roebers, Eline"]
[Black "Khismatullin, Denis"]
[WhiteFideId "1058401"]
[BlackFideId "4142578"]
[WhiteElo "2609"]
[BlackElo "2952"]
[Result "1-0"]
[Round "2"]
[TimeControl "180+1"]
[Date "2023.11.07"]
[WhiteClock "0:00:14"]
[BlackClock "0:00:00"]
[Board "23"]

1. e4 {[%clk 0:02:56]}  c5 {[%clk 0:02:58]} 2. Nf3 {[%clk 0:02:56]}  d6 {[%clk 0:02:58]} 3. d4 {[%clk 0:02:56]}  cxd4 {[%clk 0:02:58]} 4. Nxd4 {[%clk 0:02:57]}  Nf6 {[%clk 0:02:58]} 5. Nc3 {[%clk 0:02:57]}  a6 {[%clk 0:02:58]} 6. Rg1 {[%clk 0:02:57]}  g6 {[%clk 0:02:57]} 7. g4 {[%clk 0:02:57]}  Bg7 {[%clk 0:02:56]} 8. Be3 {[%clk 0:02:55]}  Nc6 {[%clk 0:02:54]} 9. g5 {[%clk 0:02:54]}  Nd7 {[%clk 0:02:54]} 10. Qd2 {[%clk 0:02:52]}  Nde5 {[%clk 0:02:46]} 11. Be2 {[%clk 0:02:47]}  Na5 {[%clk 0:02:18]} 12. b3 {[%clk 0:02:38]}  O-O {[%clk 0:02:14]} 13. h4 {[%clk 0:02:13]}  e6 {[%clk 0:02:04]} 14. h5 {[%clk 0:02:06]}  Bd7 {[%clk 0:01:57]} 15. f4 {[%clk 0:01:49]}  Nec6 {[%clk 0:01:56]} 16. Bf3 {[%clk 0:01:49]}  Rc8 {[%clk 0:01:53]} 17. Nce2 {[%clk 0:01:48]}  Nxd4 {[%clk 0:01:45]} 18. Bxd4 {[%clk 0:01:36]}  e5 {[%clk 0:01:44]} 19. Bb2 {[%clk 0:01:35]}  Nc6 {[%clk 0:01:29]} 20. O-O-O {[%clk 0:01:26]}  Qb6 {[%clk 0:01:13]} 21. Kb1 {[%clk 0:01:15]}  Rfd8 {[%clk 0:01:04]} 22. hxg6 {[%clk 0:01:12]}  hxg6 {[%clk 0:01:04]} 23. f5 {[%clk 0:01:03]}  gxf5 {[%clk 0:00:55]} 24. g6 {[%clk 0:00:56]}  Rf8 {[%clk 0:00:44]} 25. gxf7+ {[%clk 0:00:54]}  Rxf7 {[%clk 0:00:44]} 26. exf5 {[%clk 0:00:51]}  Nb4 {[%clk 0:00:42]} 27. f6 {[%clk 0:00:35]}  Bf5 {[%clk 0:00:30]} 28. Qh6 {[%clk 0:00:26]}  Qc7 {[%clk 0:00:26]} 29. Nc3 {[%clk 0:00:19]}  Bxc2+ {[%clk 0:00:21]} 30. Ka1 {[%clk 0:00:20]}  Bf5 {[%clk 0:00:18]} 31. a3 {[%clk 0:00:17]}  Nc2+ {[%clk 0:00:14]} 32. Ka2 {[%clk 0:00:17]}  Be6 {[%clk 0:00:08]} 33. Bd5 {[%clk 0:00:16]}  Bxd5 {[%clk 0:00:03]} 34. Nxd5 {[%clk 0:00:17]}  Qd7 {[%clk 0:00:00]} 35. fxg7 {[%clk 0:00:14]} 1-0


[Site "https://www.chess.com"]

[Event "Titled Tuesday Blitz November 07 Late 2023"]
[White "Sivakumar, Shaaketh"]
[Black "Chigaev, Maksim"]
[WhiteFideId "30940176"]
[BlackFideId "4108116"]
[WhiteElo "2600"]
[BlackElo "2923"]
[Result "1-0"]
[Round "2"]
[TimeControl "180+1"]
[Date "2023.11.07"]
[WhiteClock "0:00:42"]
[BlackClock "0:00:00"]
[Board "27"]

1. e4 {[%clk 0:03:00]}  c5 {[%clk 0:02:55]} 2. Nf3 {[%clk 0:03:01]}  d6 {[%clk 0:02:55]} 3. d4 {[%clk 0:03:01]}  cxd4 {[%clk 0:02:55]} 4. Qxd4 {[%clk 0:03:02]}  Nf6 {[%clk 0:02:54]} 5. Bb5+ {[%clk 0:02:57]}  Nc6 {[%clk 0:02:51]} 6. c4 {[%clk 0:02:58]}  g6 {[%clk 0:02:50]} 7. Nc3 {[%clk 0:02:57]}  Bg7 {[%clk 0:02:50]} 8. O-O {[%clk 0:02:57]}  O-O {[%clk 0:02:51]} 9. Qe3 {[%clk 0:02:53]}  Bg4 {[%clk 0:02:40]} 10. Bxc6 {[%clk 0:02:43]}  bxc6 {[%clk 0:02:33]} 11. e5 {[%clk 0:02:41]}  Nd7 {[%clk 0:02:30]} 12. exd6 {[%clk 0:02:39]}  exd6 {[%clk 0:02:30]} 13. Qf4 {[%clk 0:02:38]}  Bxf3 {[%clk 0:02:21]} 14. Qxf3 {[%clk 0:02:39]}  Ne5 {[%clk 0:02:21]} 15. Qf4 {[%clk 0:02:35]}  d5 {[%clk 0:02:16]} 16. cxd5 {[%clk 0:02:29]}  cxd5 {[%clk 0:02:16]} 17. Rd1 {[%clk 0:02:29]}  d4 {[%clk 0:02:14]} 18. Be3 {[%clk 0:02:24]}  dxe3 {[%clk 0:02:03]} 19. Rxd8 {[%clk 0:02:23]}  exf2+ {[%clk 0:02:02]} 20. Qxf2 {[%clk 0:02:23]}  Raxd8 {[%clk 0:02:00]} 21. Rd1 {[%clk 0:02:20]}  Ng4 {[%clk 0:01:51]} 22. Qf4 {[%clk 0:02:05]}  Bxc3 {[%clk 0:01:25]} 23. Qxg4 {[%clk 0:01:43]}  Bxb2 {[%clk 0:01:20]} 24. Rd7 {[%clk 0:01:32]}  h5 {[%clk 0:01:12]} 25. Qa4 {[%clk 0:01:30]}  Rxd7 {[%clk 0:01:00]} 26. Qxd7 {[%clk 0:01:31]}  a5 {[%clk 0:01:00]} 27. Qd2 {[%clk 0:01:29]}  Rb8 {[%clk 0:00:36]} 28. Qxa5 {[%clk 0:01:27]}  Bd4+ {[%clk 0:00:36]} 29. Kf1 {[%clk 0:01:28]}  Rb1+ {[%clk 0:00:36]} 30. Ke2 {[%clk 0:01:27]}  Rb2+ {[%clk 0:00:37]} 31. Kd3 {[%clk 0:01:26]}  Bf6 {[%clk 0:00:37]} 32. a4 {[%clk 0:01:23]}  Kg7 {[%clk 0:00:36]} 33. Qd5 {[%clk 0:01:21]}  Rb1 {[%clk 0:00:30]} 34. Kc4 {[%clk 0:01:10]}  Rc1+ {[%clk 0:00:24]} 35. Kb5 {[%clk 0:01:06]}  Rb1+ {[%clk 0:00:24]} 36. Kc6 {[%clk 0:01:02]}  Rc1+ {[%clk 0:00:23]} 37. Kd7 {[%clk 0:01:02]}  Ra1 {[%clk 0:00:16]} 38. a5 {[%clk 0:00:50]}  Bc3 {[%clk 0:00:15]} 39. Qd3 {[%clk 0:00:51]}  Be5 {[%clk 0:00:05]} 40. a6 {[%clk 0:00:49]}  Ra5 {[%clk 0:00:02]} 41. Qe3 {[%clk 0:00:43]}  Bf6 {[%clk 0:00:00]} 42. a7 {[%clk 0:00:42]} 1-0


[Site "https://www.chess.com"]

[Event "Titled Tuesday Blitz November 07 Late 2023"]
[White "Kovalev, Vladislav"]
[Black "Ozates, Tuna"]
[WhiteFideId "13504398"]
[BlackFideId "6354521"]
[WhiteElo "2920"]
[BlackElo "2598"]
[Result "1-0"]
[Round "2"]
[TimeControl "180+1"]
[Date "2023.11.07"]
[WhiteClock "0:00:10"]
[BlackClock "0:00:07"]
[Board "28"]

1. e4 {[%clk 0:03:00]}  e5 {[%clk 0:02:57]} 2. Nf3 {[%clk 0:03:01]}  Nc6 {[%clk 0:02:56]} 3. Bb5 {[%clk 0:03:01]}  a6 {[%clk 0:02:55]} 4. Ba4 {[%clk 0:03:02]}  Nge7 {[%clk 0:02:53]} 5. c3 {[%clk 0:02:58]}  g6 {[%clk 0:02:53]} 6. d4 {[%clk 0:02:59]}  exd4 {[%clk 0:02:54]} 7. cxd4 {[%clk 0:02:59]}  Bg7 {[%clk 0:02:54]} 8. O-O {[%clk 0:02:54]}  O-O {[%clk 0:02:54]} 9. Nc3 {[%clk 0:02:51]}  b5 {[%clk 0:02:53]} 10. Bb3 {[%clk 0:02:52]}  Na5 {[%clk 0:02:53]} 11. Bc2 {[%clk 0:02:50]}  d6 {[%clk 0:02:53]} 12. h3 {[%clk 0:02:51]}  c5 {[%clk 0:02:52]} 13. Bf4 {[%clk 0:02:43]}  cxd4 {[%clk 0:02:36]} 14. Nxd4 {[%clk 0:02:44]}  d5 {[%clk 0:02:28]} 15. exd5 {[%clk 0:01:53]}  Nxd5 {[%clk 0:02:28]} 16. Nxd5 {[%clk 0:01:54]}  Qxd5 {[%clk 0:02:27]} 17. Nb3 {[%clk 0:01:55]}  Qxd1 {[%clk 0:02:22]} 18. Raxd1 {[%clk 0:01:56]}  Nc4 {[%clk 0:01:49]} 19. Nc5 {[%clk 0:01:03]}  Nxb2 {[%clk 0:01:34]} 20. Rd6 {[%clk 0:01:03]}  Nc4 {[%clk 0:01:30]} 21. Rc6 {[%clk 0:01:03]}  Be6 {[%clk 0:01:22]} 22. Re1 {[%clk 0:00:34]}  Bc3 {[%clk 0:01:11]} 23. Re2 {[%clk 0:00:25]}  Rac8 {[%clk 0:00:58]} 24. Rxc8 {[%clk 0:00:13]}  Bxc8 {[%clk 0:00:49]} 25. Re7 {[%clk 0:00:13]}  Bb4 {[%clk 0:00:42]} 26. Rc7 {[%clk 0:00:13]}  Nb6 {[%clk 0:00:28]} 27. Bb3 {[%clk 0:00:04]}  Bxc5 {[%clk 0:00:23]} 28. Rxc5 {[%clk 0:00:04]}  Be6 {[%clk 0:00:24]} 29. Rc6 {[%clk 0:00:02]}  Bxb3 {[%clk 0:00:20]} 30. axb3 {[%clk 0:00:03]}  Nd5 {[%clk 0:00:20]} 31. Bh6 {[%clk 0:00:03]}  Ra8 {[%clk 0:00:18]} 32. Rd6 {[%clk 0:00:04]}  Nc7 {[%clk 0:00:15]} 33. g4 {[%clk 0:00:03]}  a5 {[%clk 0:00:12]} 34. Rc6 {[%clk 0:00:04]}  Ne6 {[%clk 0:00:12]} 35. Rb6 {[%clk 0:00:02]}  a4 {[%clk 0:00:13]} 36. bxa4 {[%clk 0:00:01]}  bxa4 {[%clk 0:00:13]} 37. Rb2 {[%clk 0:00:02]}  a3 {[%clk 0:00:14]} 38. Ra2 {[%clk 0:00:03]}  Nd4 {[%clk 0:00:10]} 39. Kf1 {[%clk 0:00:03]}  Nc6 {[%clk 0:00:10]} 40. Bc1 {[%clk 0:00:03]}  Nb4 {[%clk 0:00:07]} 41. Rxa3 {[%clk 0:00:03]}  Rxa3 {[%clk 0:00:08]} 42. Bxa3 {[%clk 0:00:03]}  Nd5 {[%clk 0:00:09]} 43. Bb2 {[%clk 0:00:04]}  Nf4 {[%clk 0:00:07]} 44. h4 {[%clk 0:00:04]}  h5 {[%clk 0:00:07]} 45. gxh5 {[%clk 0:00:03]}  Nxh5 {[%clk 0:00:08]} 46. Kg2 {[%clk 0:00:03]}  Ng7 {[%clk 0:00:08]} 47. Kf3 {[%clk 0:00:04]}  Nf5 {[%clk 0:00:08]} 48. Kg4 {[%clk 0:00:04]}  Kh7 {[%clk 0:00:09]} 49. h5 {[%clk 0:00:04]}  Ng7 {[%clk 0:00:07]} 50. hxg6+ {[%clk 0:00:04]}  Kxg6 {[%clk 0:00:07]} 51. Bxg7 {[%clk 0:00:04]}  Kxg7 {[%clk 0:00:07]} 52. Kf5 {[%clk 0:00:05]}  Kg8 {[%clk 0:00:04]} 53. Kf6 {[%clk 0:00:06]}  Kf8 {[%clk 0:00:05]} 54. f4 {[%clk 0:00:03]}  Ke8 {[%clk 0:00:03]} 55. Kg7 {[%clk 0:00:03]}  Ke7 {[%clk 0:00:04]} 56. f5 {[%clk 0:00:04]}  f6 {[%clk 0:00:04]} 57. Kg6 {[%clk 0:00:05]}  Ke8 {[%clk 0:00:04]} 58. Kxf6 {[%clk 0:00:05]}  Kf8 {[%clk 0:00:05]} 59. Kg6 {[%clk 0:00:06]}  Kg8 {[%clk 0:00:05]} 60. Kf6 {[%clk 0:00:06]}  Kf8 {[%clk 0:00:05]} 61. Ke6 {[%clk 0:00:07]}  Ke8 {[%clk 0:00:06]} 62. f6 {[%clk 0:00:08]}  Kf8 {[%clk 0:00:07]} 63. f7 {[%clk 0:00:08]}  Kg7 {[%clk 0:00:07]} 64. Ke7 {[%clk 0:00:09]}  Kh8 {[%clk 0:00:07]} 65. f8=Q+ {[%clk 0:00:10]} 1-0


[Site "https://www.chess.com"]

[Event "Titled Tuesday Blitz November 07 Late 2023"]
[White "Salinas Herrera, Pablo"]
[Black "Pinheiro, Iung Alicio de O."]
[WhiteFideId "3407128"]
[BlackFideId "2104350"]
[WhiteElo "2903"]
[BlackElo "2593"]
[Result "1-0"]
[Round "2"]
[TimeControl "180+1"]
[Date "2023.11.07"]
[WhiteClock "0:00:48"]
[BlackClock "0:00:00"]
[Board "32"]

1. d4 {[%clk 0:02:59]}  Nf6 {[%clk 0:02:58]} 2. Nf3 {[%clk 0:02:59]}  e6 {[%clk 0:02:55]} 3. Bf4 {[%clk 0:02:59]}  c5 {[%clk 0:02:51]} 4. e3 {[%clk 0:02:59]}  b6 {[%clk 0:02:50]} 5. Nbd2 {[%clk 0:02:58]}  cxd4 {[%clk 0:02:45]} 6. exd4 {[%clk 0:02:57]}  Bb7 {[%clk 0:02:44]} 7. Nc4 {[%clk 0:02:55]}  d6 {[%clk 0:02:36]} 8. Bd3 {[%clk 0:02:52]}  b5 {[%clk 0:02:26]} 9. Ne3 {[%clk 0:02:52]}  a6 {[%clk 0:02:22]} 10. a4 {[%clk 0:02:51]}  b4 {[%clk 0:02:09]} 11. Nc4 {[%clk 0:02:49]}  a5 {[%clk 0:01:56]} 12. O-O {[%clk 0:02:48]}  Be7 {[%clk 0:01:55]} 13. Nfd2 {[%clk 0:02:38]}  O-O {[%clk 0:01:53]} 14. Nb3 {[%clk 0:02:37]}  Nc6 {[%clk 0:01:51]} 15. Re1 {[%clk 0:02:35]}  Nd5 {[%clk 0:01:42]} 16. Bg3 {[%clk 0:02:35]}  Re8 {[%clk 0:01:42]} 17. Qh5 {[%clk 0:02:33]}  Nf6 {[%clk 0:01:38]} 18. Qb5 {[%clk 0:02:31]}  Qc7 {[%clk 0:01:25]} 19. Qb6 {[%clk 0:02:18]}  Qd7 {[%clk 0:01:16]} 20. Ncxa5 {[%clk 0:02:14]}  Reb8 {[%clk 0:00:54]} 21. Bb5 {[%clk 0:02:12]}  Nd5 {[%clk 0:00:44]} 22. Bxc6 {[%clk 0:02:03]}  Bxc6 {[%clk 0:00:22]} 23. Qxc6 {[%clk 0:02:03]}  Qd8 {[%clk 0:00:23]} 24. Nb7 {[%clk 0:01:56]}  Qf8 {[%clk 0:00:16]} 25. a5 {[%clk 0:01:55]}  Rc8 {[%clk 0:00:15]} 26. Qb5 {[%clk 0:01:55]}  Nc7 {[%clk 0:00:11]} 27. Qd3 {[%clk 0:01:53]}  Na6 {[%clk 0:00:11]} 28. Rec1 {[%clk 0:01:03]}  Rc7 {[%clk 0:00:09]} 29. Qb5 {[%clk 0:01:04]}  Ra7 {[%clk 0:00:03]} 30. N7c5 {[%clk 0:00:54]}  Nxc5 {[%clk 0:00:04]} 31. dxc5 {[%clk 0:00:53]}  Rcb7 {[%clk 0:00:03]} 32. Qc4 {[%clk 0:00:51]}  dxc5 {[%clk 0:00:02]} 33. a6 {[%clk 0:00:49]}  Rd7 {[%clk 0:00:00]} 34. Rd1 {[%clk 0:00:48]} 1-0


[Site "https://www.chess.com"]

[Event "Titled Tuesday Blitz November 07 Late 2023"]
[White "Toropov, Pavel"]
[Black "Brodsky, David"]
[WhiteFideId "24129178"]
[BlackFideId "2073250"]
[WhiteElo "2563"]
[BlackElo "2815"]
[Result "1/2-1/2"]
[Round "2"]
[TimeControl "180+1"]
[Date "2023.11.07"]
[WhiteClock "0:00:11"]
[BlackClock "0:00:06"]
[Board "43"]

1. e4 {[%clk 0:02:55]}  e5 {[%clk 0:02:59]} 2. Nf3 {[%clk 0:02:55]}  Nc6 {[%clk 0:03:00]} 3. d4 {[%clk 0:02:55]}  exd4 {[%clk 0:03:00]} 4. Nxd4 {[%clk 0:02:55]}  Nf6 {[%clk 0:02:58]} 5. Nc3 {[%clk 0:02:55]}  Bb4 {[%clk 0:02:56]} 6. Nxc6 {[%clk 0:02:55]}  bxc6 {[%clk 0:02:57]} 7. Bd3 {[%clk 0:02:55]}  d5 {[%clk 0:02:57]} 8. exd5 {[%clk 0:02:55]}  O-O {[%clk 0:02:58]} 9. O-O {[%clk 0:02:56]}  Bg4 {[%clk 0:02:58]} 10. f3 {[%clk 0:02:50]}  Bh5 {[%clk 0:02:58]} 11. dxc6 {[%clk 0:02:49]}  Qd4+ {[%clk 0:02:58]} 12. Kh1 {[%clk 0:02:49]}  Bxc3 {[%clk 0:02:58]} 13. bxc3 {[%clk 0:02:49]}  Qxc3 {[%clk 0:02:59]} 14. Rb1 {[%clk 0:02:49]}  Bg6 {[%clk 0:02:59]} 15. Rb3 {[%clk 0:02:23]}  Qxc6 {[%clk 0:02:57]} 16. Bb2 {[%clk 0:02:09]}  Rad8 {[%clk 0:02:47]} 17. Re1 {[%clk 0:01:54]}  Rfe8 {[%clk 0:02:31]} 18. Bxf6 {[%clk 0:01:40]}  Qxf6 {[%clk 0:02:17]} 19. Rxe8+ {[%clk 0:01:31]}  Rxe8 {[%clk 0:02:18]} 20. h3 {[%clk 0:01:22]}  Qf4 {[%clk 0:01:51]} 21. Qe2 {[%clk 0:00:56]}  Qc1+ {[%clk 0:01:31]} 22. Kh2 {[%clk 0:00:52]}  Qf4+ {[%clk 0:01:31]} 23. Kh1 {[%clk 0:00:51]}  Kf8 {[%clk 0:01:25]} 24. Qf2 {[%clk 0:00:28]}  Qc1+ {[%clk 0:01:24]} 25. Kh2 {[%clk 0:00:27]}  Qf4+ {[%clk 0:01:25]} 26. Qg3 {[%clk 0:00:25]}  Qxg3+ {[%clk 0:01:14]} 27. Kxg3 {[%clk 0:00:26]}  Bxd3 {[%clk 0:01:09]} 28. Rxd3 {[%clk 0:00:27]}  Re6 {[%clk 0:01:03]} 29. Rc3 {[%clk 0:00:24]}  Ra6 {[%clk 0:01:02]} 30. a3 {[%clk 0:00:20]}  c6 {[%clk 0:00:57]} 31. Kf4 {[%clk 0:00:20]}  Ke7 {[%clk 0:00:58]} 32. Ke5 {[%clk 0:00:20]}  Ra5+ {[%clk 0:00:58]} 33. Ke4 {[%clk 0:00:20]}  Kd6 {[%clk 0:00:58]} 34. g4 {[%clk 0:00:20]}  Ra4+ {[%clk 0:00:53]} 35. Ke3 {[%clk 0:00:20]}  g5 {[%clk 0:00:51]} 36. Rd3+ {[%clk 0:00:18]}  Ke5 {[%clk 0:00:49]} 37. Rc3 {[%clk 0:00:18]}  Kd5 {[%clk 0:00:40]} 38. Rd3+ {[%clk 0:00:16]}  Kc5 {[%clk 0:00:32]} 39. Rc3+ {[%clk 0:00:15]}  Rc4 {[%clk 0:00:32]} 40. Kd3 {[%clk 0:00:15]}  Rxc3+ {[%clk 0:00:31]} 41. Kxc3 {[%clk 0:00:16]}  a6 {[%clk 0:00:21]} 42. Kd3 {[%clk 0:00:16]}  Kd5 {[%clk 0:00:21]} 43. c4+ {[%clk 0:00:16]}  Kc5 {[%clk 0:00:20]} 44. Kc3 {[%clk 0:00:16]}  a5 {[%clk 0:00:16]} 45. Kd3 {[%clk 0:00:16]}  a4 {[%clk 0:00:14]} 46. Kc3 {[%clk 0:00:16]}  f6 {[%clk 0:00:10]} 47. Kd3 {[%clk 0:00:16]}  Kd6 {[%clk 0:00:11]} 48. Kd4 {[%clk 0:00:16]}  c5+ {[%clk 0:00:11]} 49. Ke4 {[%clk 0:00:16]}  Ke6 {[%clk 0:00:12]} 50. f4 {[%clk 0:00:16]}  h6 {[%clk 0:00:08]} 51. f5+ {[%clk 0:00:14]}  Kd6 {[%clk 0:00:06]} 52. Kf3 {[%clk 0:00:11]} 1/2-1/2


[Site "https://www.chess.com"]

[Event "Titled Tuesday Blitz November 07 Late 2023"]
[White "Toncheva, Nadya"]
[Black "ChessBrainiacOnTwitch"]
[WhiteFideId "2924056"]
[WhiteElo "2555"]
[BlackElo "2813"]
[Result "1-0"]
[Round "2"]
[TimeControl "180+1"]
[Date "2023.11.07"]
[WhiteClock "0:00:12"]
[BlackClock "0:00:04"]
[Board "45"]

1. d4 {[%clk 0:03:00]}  Nf6 {[%clk 0:02:56]} 2. c4 {[%clk 0:03:00]}  e6 {[%clk 0:02:47]} 3. Nc3 {[%clk 0:03:00]}  Bb4 {[%clk 0:02:47]} 4. e3 {[%clk 0:03:01]}  O-O {[%clk 0:02:48]} 5. Bd3 {[%clk 0:03:01]}  d5 {[%clk 0:02:41]} 6. Ne2 {[%clk 0:02:54]}  c5 {[%clk 0:02:28]} 7. cxd5 {[%clk 0:02:53]}  Nxd5 {[%clk 0:02:25]} 8. O-O {[%clk 0:02:52]}  Nc6 {[%clk 0:02:18]} 9. Nxd5 {[%clk 0:02:46]}  Qxd5 {[%clk 0:02:14]} 10. Nc3 {[%clk 0:02:39]}  Qd8 {[%clk 0:02:08]} 11. dxc5 {[%clk 0:02:33]}  Bxc5 {[%clk 0:02:05]} 12. Bxh7+ {[%clk 0:02:32]}  Kxh7 {[%clk 0:02:01]} 13. Qh5+ {[%clk 0:02:32]}  Kg8 {[%clk 0:02:02]} 14. Qxc5 {[%clk 0:02:33]}  Qf6 {[%clk 0:01:54]} 15. e4 {[%clk 0:02:23]}  e5 {[%clk 0:01:33]} 16. Nd5 {[%clk 0:02:11]}  Qg6 {[%clk 0:01:32]} 17. Qxc6 {[%clk 0:02:06]}  Qxc6 {[%clk 0:01:27]} 18. Ne7+ {[%clk 0:02:07]}  Kh7 {[%clk 0:01:28]} 19. Nxc6 {[%clk 0:02:07]}  bxc6 {[%clk 0:01:29]} 20. Be3 {[%clk 0:02:05]}  Be6 {[%clk 0:01:28]} 21. b3 {[%clk 0:02:05]}  a5 {[%clk 0:01:28]} 22. Rfc1 {[%clk 0:02:03]}  a4 {[%clk 0:01:25]} 23. b4 {[%clk 0:01:59]}  Rfc8 {[%clk 0:01:09]} 24. a3 {[%clk 0:01:57]}  f6 {[%clk 0:00:59]} 25. f3 {[%clk 0:01:53]}  Bb3 {[%clk 0:00:57]} 26. Kf2 {[%clk 0:01:53]}  Kg8 {[%clk 0:00:53]} 27. Rc5 {[%clk 0:01:52]}  Be6 {[%clk 0:00:47]} 28. Rac1 {[%clk 0:01:51]}  Bd7 {[%clk 0:00:47]} 29. Rd1 {[%clk 0:01:44]}  Be8 {[%clk 0:00:45]} 30. h4 {[%clk 0:01:43]}  Kf7 {[%clk 0:00:45]} 31. g4 {[%clk 0:01:41]}  Ke6 {[%clk 0:00:46]} 32. Rc3 {[%clk 0:01:40]}  Rd8 {[%clk 0:00:45]} 33. Rcd3 {[%clk 0:01:34]}  Rxd3 {[%clk 0:00:45]} 34. Rxd3 {[%clk 0:01:35]}  Rc8 {[%clk 0:00:24]} 35. Bc5 {[%clk 0:01:35]}  Kf7 {[%clk 0:00:20]} 36. g5 {[%clk 0:01:25]}  Rc7 {[%clk 0:00:17]} 37. Rd8 {[%clk 0:01:10]}  Rd7 {[%clk 0:00:14]} 38. g6+ {[%clk 0:01:09]}  Kxg6 {[%clk 0:00:12]} 39. Rxe8 {[%clk 0:01:10]}  Rd2+ {[%clk 0:00:12]} 40. Kg3 {[%clk 0:01:08]}  Ra2 {[%clk 0:00:11]} 41. b5 {[%clk 0:01:03]}  cxb5 {[%clk 0:00:11]} 42. Rb8 {[%clk 0:01:03]}  Rb2 {[%clk 0:00:11]} 43. Bb4 {[%clk 0:01:02]}  f5 {[%clk 0:00:07]} 44. exf5+ {[%clk 0:01:01]}  Kxf5 {[%clk 0:00:07]} 45. Rxb5 {[%clk 0:01:01]}  Rb3 {[%clk 0:00:07]} 46. Ra5 {[%clk 0:00:59]}  g6 {[%clk 0:00:03]} 47. Bd6 {[%clk 0:00:51]}  Re3 {[%clk 0:00:04]} 48. Rxa4 {[%clk 0:00:46]}  Rd3 {[%clk 0:00:02]} 49. Be7 {[%clk 0:00:37]}  Rb3 {[%clk 0:00:02]} 50. Ra5 {[%clk 0:00:35]}  Rd3 {[%clk 0:00:01]} 51. Bb4 {[%clk 0:00:34]}  Ke6 {[%clk 0:00:01]} 52. Kg4 {[%clk 0:00:33]}  Rd1 {[%clk 0:00:02]} 53. Ra6+ {[%clk 0:00:32]}  Kf7 {[%clk 0:00:02]} 54. a4 {[%clk 0:00:29]}  Rg1+ {[%clk 0:00:02]} 55. Kh3 {[%clk 0:00:27]}  Rb1 {[%clk 0:00:03]} 56. Bd6 {[%clk 0:00:25]}  Rb3 {[%clk 0:00:04]} 57. Kg3 {[%clk 0:00:25]}  e4 {[%clk 0:00:05]} 58. Ra7+ {[%clk 0:00:24]}  Ke6 {[%clk 0:00:04]} 59. Bc5 {[%clk 0:00:22]}  Rxf3+ {[%clk 0:00:05]} 60. Kg4 {[%clk 0:00:22]}  Rc3 {[%clk 0:00:06]} 61. Bb6 {[%clk 0:00:17]}  Rc1 {[%clk 0:00:05]} 62. a5 {[%clk 0:00:16]}  Rb1 {[%clk 0:00:05]} 63. Rg7 {[%clk 0:00:15]}  Kd5 {[%clk 0:00:05]} 64. Rxg6 {[%clk 0:00:13]}  Rb2 {[%clk 0:00:06]} 65. Kf4 {[%clk 0:00:13]}  Rf2+ {[%clk 0:00:04]} 66. Bxf2 {[%clk 0:00:12]} 1-0


[Site "https://www.chess.com"]